[Event "Weekendtournooi Groningen & PK NOSBO"]
[Site "Groningen, Netherlands"]
[Date "2023.05.21"]
[Round "7.4"]
[White "Keuning, Selwin"]
[Black "Aden, Meino"]
[Result "1-0"]
[TimeControl "90min + 30sec/move"]
[WhiteElo "2148"]
[BlackElo "1897"]

1. e4 {[%clk 01:30:56]} {[%emt 00:00:24]} e6 {[%clk 01:30:50]} 2. d4 {[%clk
01:31:08]} {[%emt 00:00:12]} d5 {[%clk 01:30:55]} {[%emt 00:00:28]} 3. Nc3
{[%clk 01:31:27]} {[%emt 00:00:19]} Nf6 {[%clk 01:31:08]} {[%emt 00:00:13]} 4.
e5 {[%clk 01:31:51]} {[%emt 00:00:04]} Nfd7 {[%clk 01:31:07]} {[%emt 00:01:05]}
5. Nce2 {[%clk 01:32:17]} c5 {[%clk 01:31:23]} 6. c3 {[%clk 01:32:40]} Nc6
{[%clk 01:31:49]} 7. Nf3 {[%clk 01:33:07]} Be7 {[%clk 01:32:12]} {[%emt
00:00:04]} 8. a3 {[%clk 01:33:31]} {[%emt 00:00:04]} cxd4 {[%clk 01:32:05]}
{[%emt 00:00:42]} 9. cxd4 {[%clk 01:33:49]} {[%emt 00:00:09]} f6 {[%clk
01:31:49]} {[%emt 00:00:41]} 10. exf6 {[%clk 01:29:37]} {[%emt 00:04:45]} Nxf6
{[%clk 01:32:07]} {[%emt 00:00:30]} 11. Nc3 {[%clk 01:30:03]} {[%emt 00:00:14]}
O-O {[%clk 01:31:47]} {[%emt 00:01:23]} 12. Bd3 {[%clk 01:28:42]} {[%emt
00:00:47]} Bd7 {[%clk 01:32:06]} {[%emt 00:00:29]} 13. O-O {[%clk 01:28:56]}
{[%emt 00:00:09]} Rc8 {[%clk 01:32:11]} {[%emt 00:00:14]} 14. Re1 {[%clk
01:27:48]} {[%emt 00:01:37]} Bd6 {[%clk 01:31:43]} {[%emt 00:00:58]} 15. Bc2
{[%clk 01:16:18]} {[%emt 00:12:02]} Re8 {[%clk 01:20:46]} {[%emt 00:11:26]} 16.
Bg5 {[%clk 01:13:16]} {[%emt 00:03:45]} h6 {[%clk 01:19:24]} {[%emt 00:02:20]}
17. Bh4 {[%clk 01:12:33]} {[%emt 00:00:33]} Bf4 {[%clk 01:09:42]} {[%emt
00:10:18]} 18. Qd3 {[%clk 01:06:33]} {[%emt 00:06:24]} Re7 {[%clk 01:07:43]}
{[%emt 00:02:29]} 19. Ne5 {[%clk 00:50:50]} {[%emt 00:16:16]} Be8 {[%clk
01:03:47]} {[%emt 00:04:32]} 20. Rad1 {[%clk 00:39:14]} {[%emt 00:11:56]} g5
{[%clk 01:01:57]} {[%emt 00:02:20]} 21. Bg3 {[%clk 00:35:23]} {[%emt 00:04:43]}
Bxg3 {[%clk 00:59:13]} {[%emt 00:02:52]} 22. Qxg3 {[%clk 00:34:16]} {[%emt
00:01:37]} Rg7 {[%clk 00:55:50]} {[%emt 00:03:53]} 23. Qh3 {[%clk 00:31:17]}
{[%emt 00:03:52]} Qe7 {[%clk 00:53:59]} {[%emt 00:02:00]} 24. Qxh6 {[%clk
00:19:45]} {[%emt 00:12:16]} Nxe5 {[%clk 00:52:32]} {[%emt 00:02:02]} 25. Rxe5
{[%clk 00:18:01]} {[%emt 00:02:14]} Ng4 {[%clk 00:51:59]} {[%emt 00:00:42]} 26.
Qxe6+ {[%clk 00:18:22]} {[%emt 00:00:16]} Qxe6 {[%clk 00:51:26]} {[%emt
00:00:56]} 27. Rxe6 {[%clk 00:18:49]} {[%emt 00:00:28]} Bd7 {[%clk 00:51:25]}
{[%emt 00:00:06]} 28. Rd6 {[%clk 00:17:55]} {[%emt 00:01:24]} 1-0

[Event "Weekendtournooi Groningen & PK NOSBO"]
[Site "Groningen, Netherlands"]
[Date "2023.05.21"]
[Round "7.5"]
[White "Labruyere, Roger"]
[Black "Aden, Tammo"]
[Result "0-1"]
[TimeControl "90min + 30sec/move"]
[WhiteElo "2169"]
[BlackElo "1998"]

1. e4 {[%clk 01:30:59]} c6 {[%clk 01:30:53]} {[%emt 00:00:10]} 2. Nf3 {[%clk
01:30:51]} {[%emt 00:00:43]} d5 {[%clk 01:31:16]} {[%emt 00:00:05]} 3. Nc3
{[%clk 01:31:19]} dxe4 {[%clk 01:31:42]} {[%emt 00:00:04]} 4. Nxe4 {[%clk
01:31:46]} {[%emt 00:00:04]} Nf6 {[%clk 01:32:06]} {[%emt 00:00:05]} 5. Qe2
{[%clk 01:32:12]} {[%emt 00:00:05]} Nxe4 {[%clk 01:32:32]} {[%emt 00:00:04]} 6.
Qxe4 {[%clk 01:32:39]} {[%emt 00:00:04]} Nd7 {[%clk 01:32:57]} {[%emt
00:00:04]} 7. Bc4 {[%clk 01:33:00]} {[%emt 00:00:06]} Nf6 {[%clk 01:33:24]}
{[%emt 00:00:05]} 8. Ne5 {[%clk 01:33:25]} {[%emt 00:00:05]} e6 {[%clk
01:33:51]} {[%emt 00:00:13]} 9. Qf4 {[%clk 01:33:38]} {[%emt 00:00:05]} Bd6
{[%clk 01:32:56]} {[%emt 00:01:24]} 10. d4 {[%clk 01:33:02]} {[%emt 00:01:08]}
Qc7 {[%clk 01:31:37]} {[%emt 00:01:50]} 11. Qg3 {[%clk 01:31:27]} {[%emt
00:02:07]} O-O {[%clk 01:20:12]} {[%emt 00:11:59]} 12. Bh6 {[%clk 01:31:14]}
{[%emt 00:00:40]} Nh5 {[%clk 01:16:34]} {[%emt 00:04:04]} 13. Qg5 {[%clk
01:30:52]} {[%emt 00:00:52]} f6 {[%clk 01:16:42]} {[%emt 00:00:31]} 14. Qxh5
{[%clk 01:31:16]} fxe5 {[%clk 01:16:57]} {[%emt 00:00:14]} 15. Be3 {[%clk
01:30:56]} {[%emt 00:00:51]} e4 {[%clk 01:06:50]} {[%emt 00:10:34]} 16. O-O
{[%clk 01:30:16]} {[%emt 00:01:09]} Bd7 {[%clk 01:03:53]} {[%emt 00:03:27]} 17.
h3 {[%clk 01:14:20]} {[%emt 00:16:27]} Kh8 {[%clk 00:59:32]} {[%emt 00:04:50]}
18. Rad1 {[%clk 01:08:29]} {[%emt 00:06:21]} Be8 {[%clk 00:47:30]} {[%emt
00:12:37]} 19. Qh4 {[%clk 01:06:16]} {[%emt 00:02:40]} Bg6 {[%clk 00:46:50]}
{[%emt 00:01:09]} 20. Bxe6 {[%clk 01:04:28]} {[%emt 00:02:22]} Rae8 {[%clk
00:44:54]} {[%emt 00:02:22]} 21. Bb3 {[%clk 00:52:47]} {[%emt 00:12:15]} Rf5
{[%clk 00:38:20]} {[%emt 00:07:01]} 22. c4 {[%clk 00:43:41]} {[%emt 00:09:35]}
Qd7 {[%clk 00:34:08]} {[%emt 00:04:42]} 23. d5 {[%clk 00:31:52]} {[%emt
00:12:19]} c5 {[%clk 00:33:58]} {[%emt 00:00:39]} 24. Rfe1 {[%clk 00:28:32]}
{[%emt 00:03:50]} Qf7 {[%clk 00:27:56]} {[%emt 00:06:36]} 25. Rd2 {[%clk
00:15:30]} {[%emt 00:13:33]} Rh5 {[%clk 00:25:56]} {[%emt 00:02:26]} 26. Qg4
{[%clk 00:15:32]} {[%emt 00:00:28]} Bf5 {[%clk 00:26:14]} {[%emt 00:00:12]} 27.
Qe2 {[%clk 00:13:43]} {[%emt 00:02:18]} Qg6 {[%clk 00:24:30]} {[%emt 00:02:14]}
28. Qf1 {[%clk 00:01:18]} {[%emt 00:12:56]} Rxh3 {[%clk 00:24:11]} {[%emt
00:00:49]} 29. f4 {[%clk 00:01:02]} {[%emt 00:00:47]} exf3 {[%clk 00:24:01]}
{[%emt 00:00:41]} 30. Bg5 {[%clk 00:00:32]} {[%emt 00:00:58]} Rh1+ {[%clk
00:21:42]} {[%emt 00:02:48]} 31. Kxh1 {[%clk 00:00:59]} {[%emt 00:00:06]} Qh5+
{[%clk 00:22:08]} {[%emt 00:00:04]} 32. Kg1 {[%clk 00:01:18]} {[%emt 00:00:08]}
Qh2+ {[%clk 00:22:33]} {[%emt 00:00:06]} 33. Kf2 {[%clk 00:01:45]} {[%emt
00:00:06]} Qg3+ {[%clk 00:22:59]} {[%emt 00:00:04]} 0-1

[Event "Weekendtournooi Groningen & PK NOSBO"]
[Site "Groningen, Netherlands"]
[Date "2023.05.21"]
[Round "7.6"]
[White "Kingma, Lukas"]
[Black "Kardoeus, David"]
[Result "0-1"]
[TimeControl "90min + 30sec/move"]
[WhiteElo "1518"]
[BlackElo "2158"]

1. d4 {[%clk 01:30:58]} {[%emt 00:00:04]} Nf6 {[%clk 01:29:29]} {[%emt
00:01:20]} 2. c4 {[%clk 01:31:24]} {[%emt 00:00:38]} g6 {[%clk 01:29:54]} 3.
Nc3 {[%clk 01:31:47]} Bg7 {[%clk 01:30:22]} 4. e4 {[%clk 01:32:11]} {[%emt
00:00:05]} d6 {[%clk 01:30:49]} 5. Nf3 {[%clk 01:32:37]} O-O {[%clk 01:31:14]}
{[%emt 00:00:05]} 6. Be2 {[%clk 01:33:05]} e5 {[%clk 01:31:38]} {[%emt
00:00:22]} 7. O-O {[%clk 01:33:31]} Bg4 {[%clk 01:32:04]} 8. Be3 {[%clk
01:32:17]} {[%emt 00:02:10]} Bxf3 {[%clk 01:31:46]} {[%emt 00:00:15]} 9. Bxf3
{[%clk 01:32:26]} {[%emt 00:00:24]} exd4 {[%clk 01:32:12]} 10. Bxd4 {[%clk
01:32:38]} {[%emt 00:00:37]} Nc6 {[%clk 01:32:35]} {[%emt 00:00:08]} 11. Be3
{[%clk 01:32:38]} {[%emt 00:00:07]} Nd7 {[%clk 01:32:59]} {[%emt 00:00:30]} 12.
Qd2 {[%clk 01:32:01]} {[%emt 00:00:43]} Nc5 {[%clk 01:33:23]} {[%emt 00:00:20]}
13. Be2 {[%clk 01:26:47]} {[%emt 00:05:33]} Bxc3 {[%clk 01:33:25]} {[%emt
00:00:29]} 14. Qxc3 {[%clk 01:27:15]} {[%emt 00:00:15]} Nxe4 {[%clk 01:33:45]}
{[%emt 00:00:23]} 15. Qc2 {[%clk 01:27:36]} Re8 {[%clk 01:33:52]} {[%emt
00:00:19]} 16. a3 {[%clk 01:26:48]} {[%emt 00:01:01]} f5 {[%clk 01:33:56]}
{[%emt 00:00:48]} 17. Rad1 {[%clk 01:23:54]} {[%emt 00:03:02]} Qf6 {[%clk
01:34:15]} {[%emt 00:00:29]} 18. b4 {[%clk 01:14:24]} {[%emt 00:09:43]} f4
{[%clk 01:32:57]} {[%emt 00:01:47]} 19. Bd2 {[%clk 01:09:26]} {[%emt 00:06:08]}
Nd4 {[%clk 01:33:08]} {[%emt 00:00:16]} 20. Qd3 {[%clk 01:09:47]} Nxe2+ {[%clk
01:30:26]} {[%emt 00:02:44]} 21. Qxe2 {[%clk 01:10:15]} {[%emt 00:00:31]} Ng3
{[%clk 01:30:04]} {[%emt 00:00:45]} 22. Qd3 {[%clk 01:09:49]} {[%emt 00:00:35]}
Nxf1 {[%clk 01:30:14]} {[%emt 00:00:23]} 23. Kxf1 {[%clk 01:09:43]} {[%emt
00:00:32]} f3 {[%clk 01:28:46]} {[%emt 00:01:59]} 24. Bc3 {[%clk 01:06:17]}
{[%emt 00:03:59]} fxg2+ {[%clk 01:25:22]} {[%emt 00:03:55]} 25. Kg1 {[%clk
01:04:24]} {[%emt 00:02:21]} Qf5 {[%clk 01:25:41]} {[%emt 00:00:09]} 26. Qd4
{[%clk 01:01:27]} {[%emt 00:03:56]} Re5 {[%clk 01:26:09]} 27. f4 {[%clk
01:00:54]} {[%emt 00:01:07]} Rf8 {[%clk 01:26:35]} 28. fxe5 {[%clk 01:00:45]}
{[%emt 00:00:15]} Qf1+ {[%clk 01:26:59]} {[%emt 00:00:25]} 0-1

[Event "Weekendtournooi Groningen & PK NOSBO"]
[Site "Groningen, Netherlands"]
[Date "2023.05.21"]
[Round "7.7"]
[White "Aden, Keno"]
[Black "Noordenbos, Daan"]
[Result "0-1"]
[TimeControl "90min + 30sec/move"]
[WhiteElo "1701"]
[BlackElo "2076"]

1. d4 {[%clk 01:30:57]} Nf6 {[%clk 01:30:45]} {[%emt 00:00:06]} 2. Nf3 {[%clk
01:31:23]} d5 {[%clk 01:31:00]} {[%emt 00:00:12]} 3. c4 {[%clk 01:31:36]}
{[%emt 00:00:10]} dxc4 {[%clk 01:31:23]} {[%emt 00:00:33]} 4. e3 {[%clk
01:31:57]} {[%emt 00:00:08]} e6 {[%clk 01:31:33]} {[%emt 00:00:09]} 5. Bxc4
{[%clk 01:32:12]} {[%emt 00:00:10]} c5 {[%clk 01:31:21]} {[%emt 00:01:10]} 6.
Nc3 {[%clk 01:32:19]} {[%emt 00:00:09]} a6 {[%clk 01:31:32]} {[%emt 00:00:04]}
7. a4 {[%clk 01:31:36]} {[%emt 00:01:05]} Nbd7 {[%clk 01:26:00]} {[%emt
00:06:00]} 8. O-O {[%clk 01:29:06]} {[%emt 00:03:35]} Qc7 {[%clk 01:18:14]}
{[%emt 00:07:42]} 9. Qe2 {[%clk 01:25:54]} {[%emt 00:03:41]} Be7 {[%clk
01:16:15]} {[%emt 00:02:30]} 10. Rd1 {[%clk 01:20:28]} {[%emt 00:05:57]} O-O
{[%clk 01:14:01]} {[%emt 00:03:28]} 11. Bd2 {[%clk 01:07:12]} {[%emt 00:13:01]}
b6 {[%clk 01:06:09]} {[%emt 00:08:21]} 12. d5 {[%clk 00:58:42]} {[%emt
00:09:01]} exd5 {[%clk 01:05:02]} {[%emt 00:01:36]} 13. Nxd5 {[%clk 00:59:02]}
{[%emt 00:00:23]} Nxd5 {[%clk 01:04:52]} {[%emt 00:00:27]} 14. Bxd5 {[%clk
00:59:28]} {[%emt 00:00:23]} Bb7 {[%clk 01:03:36]} {[%emt 00:01:27]} 15. Bc3
{[%clk 00:56:55]} {[%emt 00:03:04]} Bf6 {[%clk 00:49:50]} {[%emt 00:15:05]} 16.
Qc4 {[%clk 00:41:41]} {[%emt 00:14:54]} b5 {[%clk 00:40:34]} {[%emt 00:09:49]}
17. axb5 {[%clk 00:32:07]} {[%emt 00:10:01]} axb5 {[%clk 00:35:57]} {[%emt
00:05:07]} 18. Qd3 {[%clk 00:31:51]} {[%emt 00:00:45]} Rxa1 {[%clk 00:32:13]}
{[%emt 00:04:13]} 19. Rxa1 {[%clk 00:31:56]} {[%emt 00:00:34]} Bxd5 {[%clk
00:29:55]} {[%emt 00:02:39]} 20. Qxd5 {[%clk 00:32:24]} {[%emt 00:00:25]} Bxc3
{[%clk 00:30:11]} {[%emt 00:00:04]} 21. bxc3 {[%clk 00:32:52]} Nf6 {[%clk
00:30:15]} {[%emt 00:00:16]} 22. Qf5 {[%clk 00:32:15]} {[%emt 00:01:09]} h6
{[%clk 00:28:02]} {[%emt 00:02:42]} 23. Rd1 {[%clk 00:29:15]} {[%emt 00:03:30]}
Re8 {[%clk 00:26:57]} {[%emt 00:01:37]} 24. h3 {[%clk 00:27:22]} {[%emt
00:02:22]} Qe7 {[%clk 00:25:37]} {[%emt 00:01:52]} 25. Rb1 {[%clk 00:23:19]}
{[%emt 00:04:30]} Ne4 {[%clk 00:20:12]} {[%emt 00:05:55]} 26. Rc1 {[%clk
00:14:45]} {[%emt 00:09:25]} Nxf2 {[%clk 00:19:19]} {[%emt 00:01:01]} 27. Re1
{[%clk 00:12:31]} {[%emt 00:02:44]} Ne4 {[%clk 00:19:24]} {[%emt 00:00:40]} 0-1

[Event "Weekendtournooi Groningen & PK NOSBO"]
[Site "Groningen, Netherlands"]
[Date "2023.05.21"]
[Round "7.8"]
[White "Valiente, Paulo"]
[Black "Basinas, Konstantinos"]
[Result "1-0"]
[TimeControl "90min + 30sec/move"]
[WhiteElo "1854"]
[BlackElo "1902"]

1. d4 {[%clk 01:30:28]} Nf6 {[%clk 01:30:41]} {[%emt 00:00:36]} 2. c4 {[%clk
01:30:45]} {[%emt 00:00:08]} g6 {[%clk 01:30:56]} {[%emt 00:00:07]} 3. Nc3
{[%clk 01:31:04]} {[%emt 00:00:10]} Bg7 {[%clk 01:31:20]} {[%emt 00:00:13]} 4.
e4 {[%clk 01:31:28]} d6 {[%clk 01:31:45]} {[%emt 00:00:11]} 5. f4 {[%clk
01:31:50]} {[%emt 00:00:06]} O-O {[%clk 01:32:00]} {[%emt 00:00:13]} 6. Nf3
{[%clk 01:32:12]} {[%emt 00:00:09]} c5 {[%clk 01:29:29]} {[%emt 00:02:56]} 7.
d5 {[%clk 01:32:14]} {[%emt 00:00:52]} e6 {[%clk 01:28:57]} {[%emt 00:00:40]} 8.
Be2 {[%clk 01:32:25]} {[%emt 00:00:35]} exd5 {[%clk 01:28:53]} {[%emt
00:00:17]} 9. exd5 {[%clk 01:32:45]} {[%emt 00:00:27]} Na6 {[%clk 01:22:52]}
{[%emt 00:06:16]} 10. O-O {[%clk 01:32:08]} {[%emt 00:01:08]} Nc7 {[%clk
01:22:56]} {[%emt 00:00:22]} 11. a4 {[%clk 01:31:14]} {[%emt 00:01:26]} Na6
{[%clk 01:20:36]} {[%emt 00:02:48]} 12. h3 {[%clk 01:31:03]} {[%emt 00:00:41]}
h5 {[%clk 01:18:11]} {[%emt 00:02:55]} 13. Bd3 {[%clk 01:28:29]} {[%emt
00:03:14]} Nb4 {[%clk 01:18:27]} {[%emt 00:00:05]} 14. Bb1 {[%clk 01:28:41]}
{[%emt 00:00:50]} Bf5 {[%clk 01:09:23]} {[%emt 00:09:01]} 15. Bxf5 {[%clk
01:25:13]} {[%emt 00:04:03]} gxf5 {[%clk 01:09:51]} 16. Nh4 {[%clk 01:24:22]}
{[%emt 00:01:41]} Qd7 {[%clk 00:55:21]} {[%emt 00:14:36]} 17. Ra3 {[%clk
01:19:34]} {[%emt 00:05:17]} Kh7 {[%clk 00:52:04]} {[%emt 00:03:52]} 18. Bd2
{[%clk 01:17:33]} {[%emt 00:02:31]} Rae8 {[%clk 00:49:25]} {[%emt 00:03:16]} 19.
Nb1 {[%clk 01:07:15]} {[%emt 00:10:35]} Re4 {[%clk 00:41:26]} {[%emt 00:08:30]}
20. Bc3 {[%clk 01:02:18]} {[%emt 00:05:28]} Rxc4 {[%clk 00:33:59]} {[%emt
00:07:57]} 21. Bxf6 {[%clk 01:02:23]} {[%emt 00:00:34]} Bxf6 {[%clk 00:33:49]}
{[%emt 00:00:31]} 22. Qxh5+ {[%clk 01:02:31]} {[%emt 00:00:26]} Kg8 {[%clk
00:34:17]} 23. Rg3+ {[%clk 01:02:37]} {[%emt 00:00:27]} Bg7 {[%clk 00:34:46]}
24. Nxf5 {[%clk 01:01:36]} {[%emt 00:01:27]} f6 {[%clk 00:35:05]} {[%emt
00:00:14]} 25. Rxg7+ {[%clk 00:59:22]} {[%emt 00:02:40]} Qxg7 {[%clk 00:35:32]}
{[%emt 00:00:15]} 26. Nxg7 {[%clk 00:59:35]} {[%emt 00:00:04]} Kxg7 {[%clk
00:36:01]} {[%emt 00:00:18]} 27. Rf3 {[%clk 00:58:31]} {[%emt 00:01:17]} 1-0

[Event "Weekendtournooi Groningen & PK NOSBO"]
[Site "Groningen, Netherlands"]
[Date "2023.05.21"]
[Round "7.9"]
[White "Clemens, Adrian"]
[Black "Klooster, Jim"]
[Result "1-0"]
[TimeControl "90min + 30sec/move"]
[WhiteTitle "FM"]
[WhiteElo "2060"]
[BlackElo "1887"]

1. d4 {[%clk 01:30:50]} {[%emt 00:00:14]} d5 {[%clk 01:30:58]} {[%emt
00:00:05]} 2. Nf3 {[%clk 01:29:39]} {[%emt 00:01:35]} Nf6 {[%clk 01:29:58]}
{[%emt 00:01:29]} 3. c4 {[%clk 01:30:00]} {[%emt 00:00:10]} e6 {[%clk
01:30:21]} {[%emt 00:00:07]} 4. g3 {[%clk 01:30:17]} {[%emt 00:00:18]} c6
{[%clk 01:30:27]} {[%emt 00:00:20]} 5. Bg2 {[%clk 01:30:00]} {[%emt 00:00:49]}
Bd6 {[%clk 01:29:29]} {[%emt 00:01:26]} 6. Nc3 {[%clk 01:28:45]} {[%emt
00:01:49]} O-O {[%clk 01:29:16]} {[%emt 00:00:41]} 7. O-O {[%clk 01:29:02]}
{[%emt 00:00:12]} Nbd7 {[%clk 01:28:05]} {[%emt 00:01:41]} 8. Nd2 {[%clk
01:27:40]} {[%emt 00:01:52]} b6 {[%clk 01:10:17]} {[%emt 00:18:17]} 9. e4
{[%clk 01:26:29]} {[%emt 00:01:45]} dxe4 {[%clk 01:10:34]} {[%emt 00:00:09]} 10.
Ndxe4 {[%clk 01:26:48]} {[%emt 00:00:10]} Qc7 {[%clk 01:10:59]} {[%emt
00:00:07]} 11. Nxd6 {[%clk 01:22:11]} {[%emt 00:05:06]} Qxd6 {[%clk 01:11:10]}
{[%emt 00:00:18]} 12. Bf4 {[%clk 01:22:15]} {[%emt 00:00:30]} e5 {[%clk
01:09:38]} {[%emt 00:02:06]} 13. dxe5 {[%clk 01:22:12]} {[%emt 00:00:28]} Qxd1
{[%clk 01:04:42]} {[%emt 00:05:24]} 14. Rfxd1 {[%clk 01:22:10]} {[%emt
00:00:36]} Nh5 {[%clk 01:05:06]} {[%emt 00:00:05]} 15. Bxc6 {[%clk 01:22:20]}
{[%emt 00:00:17]} Nxf4 {[%clk 01:05:06]} 1-0

[Event "Weekendtournooi Groningen & PK NOSBO"]
[Site "Groningen, Netherlands"]
[Date "2023.05.21"]
[Round "7.10"]
[White "Gomez Becerra, Pablo"]
[Black "Westerlaan, Sander"]
[Result "0-1"]
[TimeControl "90min + 30sec/move"]
[WhiteElo "1696"]
[BlackElo "1960"]

1. d4 {[%clk 01:30:56]} d5 {[%clk 01:30:56]} 2. Nf3 {[%clk 01:31:09]} {[%emt
00:00:07]} Nf6 {[%clk 01:31:23]} {[%emt 00:00:36]} 3. e3 {[%clk 01:31:29]} Bf5
{[%clk 01:30:48]} {[%emt 00:01:07]} 4. c4 {[%clk 01:29:34]} {[%emt 00:02:03]}
e6 {[%clk 01:30:21]} {[%emt 00:01:02]} 5. Be2 {[%clk 01:23:11]} {[%emt
00:07:01]} Bd6 {[%clk 01:28:24]} {[%emt 00:02:12]} 6. Nc3 {[%clk 01:19:37]}
{[%emt 00:04:03]} Nbd7 {[%clk 01:26:30]} {[%emt 00:02:23]} 7. cxd5 {[%clk
01:17:29]} {[%emt 00:02:39]} exd5 {[%clk 01:26:55]} {[%emt 00:00:30]} 8. Qb3
{[%clk 01:14:23]} {[%emt 00:03:11]} Nb6 {[%clk 01:20:08]} {[%emt 00:07:17]} 9.
a4 {[%clk 01:10:15]} {[%emt 00:04:59]} a5 {[%clk 01:20:32]} 10. Nb5 {[%clk
00:54:45]} {[%emt 00:15:48]} Be7 {[%clk 01:20:27]} {[%emt 00:00:32]} 11. Bd3
{[%clk 00:54:00]} {[%emt 00:01:17]} Ne4 {[%clk 01:16:42]} {[%emt 00:04:13]} 12.
O-O {[%clk 00:52:18]} {[%emt 00:02:11]} c6 {[%clk 01:03:02]} {[%emt 00:14:11]}
13. Na3 {[%clk 00:43:20]} {[%emt 00:09:28]} Bd6 {[%clk 01:00:11]} {[%emt
00:03:45]} 14. Qc2 {[%clk 00:40:31]} {[%emt 00:02:55]} Qf6 {[%clk 00:42:16]}
{[%emt 00:18:24]} 15. b3 {[%clk 00:39:07]} {[%emt 00:01:57]} Qh6 {[%clk
00:37:25]} {[%emt 00:05:18]} 16. Nc4 {[%clk 00:38:35]} {[%emt 00:01:02]} Nxc4
{[%clk 00:36:10]} {[%emt 00:01:45]} 17. bxc4 {[%clk 00:38:59]} Ng5 {[%clk
00:36:22]} {[%emt 00:00:48]} 18. Ne5 {[%clk 00:38:12]} Bxe5 {[%clk 00:34:43]}
{[%emt 00:03:02]} 19. dxe5 {[%clk 00:37:50]} {[%emt 00:00:52]} Nf3+ {[%clk
00:35:06]} {[%emt 00:00:10]} 20. gxf3 {[%clk 00:38:00]} {[%emt 00:01:00]} Qg6+
{[%clk 00:35:28]} 21. Kh1 {[%clk 00:37:57]} Bxd3 {[%clk 00:35:50]} {[%emt
00:00:06]} 22. Qd1 {[%clk 00:37:29]} {[%emt 00:00:57]} Bxf1 {[%clk 00:34:33]}
{[%emt 00:01:50]} 23. Qxf1 {[%clk 00:37:53]} {[%emt 00:00:10]} Qf5 {[%clk
00:32:32]} {[%emt 00:02:28]} 24. Qe2 {[%clk 00:35:11]} {[%emt 00:03:09]} dxc4
{[%clk 00:32:19]} {[%emt 00:00:48]} 25. Qxc4 {[%clk 00:27:47]} {[%emt
00:07:50]} Qxf3+ {[%clk 00:32:10]} {[%emt 00:00:42]} 26. Kg1 {[%clk 00:28:09]}
{[%emt 00:00:15]} O-O-O {[%clk 00:28:50]} {[%emt 00:03:49]} 27. Ba3 {[%clk
00:26:34]} {[%emt 00:02:10]} Rhe8 {[%clk 00:27:16]} {[%emt 00:01:48]} 28. Bd6
{[%clk 00:26:25]} {[%emt 00:00:39]} Re6 {[%clk 00:26:13]} {[%emt 00:01:47]} 29.
Rc1 {[%clk 00:15:25]} {[%emt 00:11:31]} Qh3 {[%clk 00:19:10]} {[%emt 00:07:17]}
30. Kh1 {[%clk 00:14:10]} {[%emt 00:01:45]} Qf3+ {[%clk 00:18:16]} {[%emt
00:01:24]} 31. Kg1 {[%clk 00:14:30]} {[%emt 00:00:21]} h5 {[%clk 00:16:46]}
{[%emt 00:01:48]} 32. Kf1 {[%clk 00:11:42]} {[%emt 00:03:22]} Rg6 {[%clk
00:14:46]} {[%emt 00:02:32]} 33. Qc5 {[%clk 00:07:10]} {[%emt 00:04:58]} Rg2
{[%clk 00:13:35]} {[%emt 00:02:10]} 0-1